lending/lending_fUSD_20260206
["ID","MTS","AMOUNT","RATE_DAILY","PERIOD"]
[404627123,1770351042823,-172.2,0.00013885,2]
[404627124,1770351042832,-166.66,0.00013962,2]
[404627125,1770351042841,-266.71488783,0.0001398,2]
[404627126,1770351042851,-1600.0,0.00013996,2]
[404627127,1770351042861,-168.56945686,0.00014021,2]
[404627128,1770351042871,-1000.0,0.00014066,2]
[404627129,1770351042880,-152.0,0.00014314,4]
[404627130,1770351042890,-736.0,0.00014331,2]
[404627131,1770351042899,-37405.70232097,0.00014332,2]
[404627132,1770351042909,-683.48068205,0.00014366,2]
[404627133,1770351042918,-166.66,0.00014369,2]
[404627134,1770351042928,-157.91,0.00014369,2]
[404627135,1770351042938,-1279.72,0.00014384,2]
[404627136,1770351042947,-4882.3299227,0.00014406,2]
[404627137,1770351042957,-26592.4671246,0.00014421,2]
[404627138,1770351042966,-226.0,0.00014445,2]
[404627139,1770351042975,-823.0,0.00014445,2]
[404627140,1770351042984,-3292.0,0.00014483,2]
[404627141,1770351042994,-348.30186913,0.00014819,2]
[404627142,1770351043003,-166.38293759,0.00014832,2]
[404627143,1770351043013,-217.01480573,0.000149,2]
[404627144,1770351043022,-238.24097718,0.00014909,2]
[404627145,1770351043032,-151.0,0.00014916,2]
[404627146,1770351043041,-666.0,0.00014918,2]
[404627147,1770351043050,-213127.7403998,0.00014919,2]
[404627148,1770351043060,-250.0,0.00015,2]
[404627149,1770351043070,-1279.72,0.00015068,2]
[404627150,1770351043080,-675.37,0.00015068,2]
[404627151,1770351043090,-329.93,0.00015128,2]
[404627152,1770351043099,-1751.21516827,0.00015234,2]
[404627153,1770351043109,-168.0,0.000153,2]
[404627154,1770351043118,-168.0,0.000153,2]
[404627155,1770351043127,-500.98882065,0.00015369,2]
[404627156,1770351043136,-1600.0,0.00015396,2]
[404627157,1770351043145,-200.0,0.0001542,2]
[404627158,1770351043155,-200.0,0.00015421,2]
[404627159,1770351043165,-200.0,0.00015421,2]
[404627160,1770351043174,-1000.0,0.00015472,2]
[404627162,1770351043184,-157.91,0.00015474,2]
[404627163,1770351043194,-2000.0,0.000156,2]
[404627164,1770351043204,-4882.3299227,0.00015699,2]
[404627165,1770351043214,-513.0,0.00015702,2]
[404627166,1770351043224,-1279.72,0.00015753,2]
[404627168,1770351043235,-7506.59483808,0.00015764,2]
[404627170,1770351043244,-2046.60264728,0.00015807,2]
[404627171,1770351043254,-1152.0,0.00015875,2]
[404627172,1770351043263,-168.0,0.000159,2]
[404627173,1770351043273,-4609.0,0.00015931,2]
[404627174,1770351043282,-683.48068205,0.00015974,2]
[404627175,1770351043290,-150.0,0.00015999,2]
[404627176,1770351043299,-1000.0,0.00016,2]
[404627178,1770351043309,-3318.64685974,0.00016,2]
[404627181,1770351043318,-261.88422192,0.00016,2]
[404627183,1770351043328,-152.0,0.00016067,5]
[404627185,1770351043337,-5519.2,0.00016099,2]
[404627186,1770351043347,-261.88422192,0.000161,2]
[404627187,1770351043356,-7862.88,0.00016116,2]
[404627189,1770351043366,-443.878788,0.0001616,7]
[404627191,1770351043375,-261.88422192,0.000162,2]
[404627192,1770351043384,-1121.70770324,0.00016335,2]
[404627194,1770351043394,-1295.944,0.0001636,2]
[404627196,1770351043403,-3483.0,0.0001636,2]
[404627197,1770351043412,-150.0,0.0001636,2]
[404627199,1770351043422,-1272.0,0.0001636,2]
[404627202,1770351043436,-1206.0,0.0001636,2]
[404627203,1770351043447,-917.0,0.0001636,2]
[404627205,1770351043456,-3254.0,0.0001636,2]
[404627207,1770351043465,-412.0,0.0001636,2]
[404627209,1770351043475,-2446.0,0.0001636,2]
[404627210,1770351043484,-10688.84516838,0.00016373,2]
[404627212,1770351043493,-1638.24256251,0.00016438,2]
[404627214,1770351043502,-1638.24256251,0.00016438,2]
[404627215,1770351043515,-1638.24256251,0.00016438,2]
[404627217,1770351043524,-1638.24256251,0.00016438,2]
[404627219,1770351043534,-1638.24256251,0.00016438,2]
[404627220,1770351043543,-1638.24256251,0.00016438,2]
[404627221,1770351043554,-1638.24256251,0.00016438,2]
[404627222,1770351043563,-1638.24256251,0.00016438,2]
[404627223,1770351043572,-1638.24256251,0.00016438,2]
[404627224,1770351043583,-1638.24256251,0.00016438,2]
[404627225,1770351043592,-1638.24256251,0.00016438,2]
[404627226,1770351043601,-1638.24256251,0.00016438,2]
[404627227,1770351043610,-1638.24256251,0.00016438,2]
[404627228,1770351043619,-1638.24256251,0.00016438,2]
[404627229,1770351043628,-1638.24256251,0.00016438,2]
[404627230,1770351043638,-1638.24256251,0.00016438,2]
[404627231,1770351043648,-1638.24256251,0.00016438,2]
[404627232,1770351043657,-1638.24256251,0.00016438,2]
[404627233,1770351043666,-1638.24256251,0.00016438,2]
[404627234,1770351043675,-1638.24256251,0.00016438,2]
[404627235,1770351043684,-1638.24256251,0.00016438,2]
[404627236,1770351043697,-1638.24256251,0.00016438,2]
[404627237,1770351043706,-1638.24256251,0.00016438,2]
[404627238,1770351043715,-1638.24256251,0.00016438,2]
[404627239,1770351043725,-1638.24256251,0.00016438,2]
[404627240,1770351043735,-1638.24256251,0.00016438,2]
[404627241,1770351043744,-1638.24256251,0.00016438,2]
[404627242,1770351043753,-1638.24256251,0.00016438,2]
[404627243,1770351043768,-1638.24256251,0.00016438,2]
[404627244,1770351043778,-1638.24256251,0.00016438,2]
[404627245,1770351043788,-1638.24256251,0.00016438,2]
[404627246,1770351043798,-1638.24256251,0.00016438,2]
[404627247,1770351043807,-1638.24256251,0.00016438,2]
[404627248,1770351043817,-1638.24256251,0.00016438,2]
[404627249,1770351043826,-1638.24256251,0.00016438,2]
[404627250,1770351043836,-1638.24256251,0.00016438,2]
[404627251,1770351043846,-1638.24256251,0.00016438,2]
[404627252,1770351043855,-1638.24256251,0.00016438,2]
[404627253,1770351043865,-1638.24256251,0.00016438,2]
[404627254,1770351043875,-1638.24256251,0.00016438,2]
[404627255,1770351043884,-1638.24256251,0.00016438,2]
[404627256,1770351043896,-1638.24256251,0.00016438,2]
[404627257,1770351043906,-1638.24256251,0.00016438,2]
[404627258,1770351043915,-1638.24256251,0.00016438,2]
[404627259,1770351043925,-1638.24256251,0.00016438,2]
[404627260,1770351043935,-1638.24256251,0.00016438,2]
[404627261,1770351043943,-1638.24256251,0.00016438,2]
[404627262,1770351043952,-1638.24256251,0.00016438,2]
[404627263,1770351043962,-1638.24256251,0.00016438,2]
[404627264,1770351043971,-1638.24256251,0.00016438,2]
[404627265,1770351043981,-1638.24256251,0.00016438,2]
[404627266,1770351043991,-1638.24256251,0.00016438,2]
[404627267,1770351044001,-1638.24256251,0.00016438,2]
[404627268,1770351044010,-1638.24256251,0.00016438,2]
[404627269,1770351044020,-1638.24256251,0.00016438,2]
[404627270,1770351044030,-1638.24256251,0.00016438,2]
[404627271,1770351044040,-1638.24256251,0.00016438,2]
[404627272,1770351044049,-1638.24256251,0.00016438,2]
[404627273,1770351044059,-1638.24256251,0.00016438,2]
[404627274,1770351044069,-1638.24256251,0.00016438,2]
[404627275,1770351044079,-1638.24256251,0.00016438,2]
[404627276,1770351044089,-1638.24256251,0.00016438,2]
[404627277,1770351044099,-1638.24256251,0.00016438,2]
[404627278,1770351044108,-1583.63447708,0.00016438,2]
[404627279,1770351044118,-1583.63447708,0.00016438,2]
[404627280,1770351044128,-1583.63447708,0.00016438,2]
[404627281,1770351044137,-1583.63447708,0.00016438,2]
[404627282,1770351044147,-1583.63447708,0.00016438,2]
[404627283,1770351044158,-1583.63447708,0.00016438,2]
[404627284,1770351044169,-1583.63447708,0.00016438,2]
[404627285,1770351044179,-1583.63447708,0.00016438,2]
[404627286,1770351044189,-1583.63447708,0.00016438,2]
[404627287,1770351044384,-1583.63447708,0.00016438,2]
[404627288,1770351044394,-1583.63447708,0.00016438,2]
[404627289,1770351044403,-1583.63447708,0.00016438,2]
[404627290,1770351044413,-1583.63447708,0.00016438,2]
[404627291,1770351044423,-1583.63447708,0.00016438,2]
[404627292,1770351044435,-1583.63447708,0.00016438,2]
[404627293,1770351044446,-1583.63447708,0.00016438,2]
[404627294,1770351044455,-1583.63447708,0.00016438,2]
[404627295,1770351044465,-1583.63447708,0.00016438,2]
[404627296,1770351044474,-1583.63447708,0.00016438,2]
[404627297,1770351044484,-1583.63447708,0.00016438,2]
[404627298,1770351044494,-1583.63447708,0.00016438,2]
[404627299,1770351044503,-1583.63447708,0.00016438,2]
[404627300,1770351044518,-1583.63447708,0.00016438,2]
[404627301,1770351044528,-1583.63447708,0.00016438,2]
[404627302,1770351044539,-1583.63447708,0.00016438,2]
[404627303,1770351044548,-1583.63447708,0.00016438,2]
[404627304,1770351044559,-1583.63447707,0.00016438,2]
[404627305,1770351044569,-1279.72,0.00016438,2]
[404627306,1770351044579,-675.37,0.00016438,2]
[404627307,1770351044590,-227.32,0.00016438,2]
[404627308,1770351044599,-173.256273,0.00016438,2]
[404627309,1770351044609,-801.49439566,0.00016438,2]
[404627310,1770351044618,-1000.0,0.00016438,2]
[404627311,1770351044628,-1000.0,0.00016449,2]
[404627312,1770351044638,-300.0,0.00016467,2]
[404627313,1770351044649,-300.0,0.00016467,2]
[404627314,1770351044659,-300.0,0.00016467,2]
[404627315,1770351044668,-213127.7403998,0.00016468,2]
[404627316,1770351044679,-150.25704323,0.00016473,2]
[404627317,1770351044688,-500.0,0.00016473,2]
[404627318,1770351044700,-500.0,0.00016473,2]
[404627319,1770351044710,-329.29524768,0.00016473,2]
[404627320,1770351044720,-500.0,0.00016473,2]
[404627321,1770351044729,-418.94756511,0.00016473,2]
[404627322,1770351044739,-511.12790579,0.00016473,2]
[404627323,1770351044748,-487.0364942,0.00016489,2]
[404627324,1770351044758,-455.99591341,0.00016489,2]
[404627325,1770351044767,-455.99591341,0.00016489,2]
[404627326,1770351044777,-1000.0,0.000165,2]
[404627327,1770351044788,-157.91,0.0001658,2]
[404627328,1770351044797,-35778.0,0.00016589,2]
[404627329,1770351044807,-2000.0,0.000166,2]
[404627330,1770351044817,-616.0,0.00016711,2]
[404627331,1770351044827,-1335.0,0.00016711,2]
[404627332,1770351044836,-1000.0,0.00016712,2]
[404627333,1770351044846,-165.85,0.00016712,2]
[404627334,1770351044855,-219.95,0.00016726,2]
[404627335,1770351044864,-151.0,0.00016793,2]
[404627336,1770351044874,-1600.0,0.00016796,2]
[404627337,1770351044884,-1000.0,0.00016879,2]
[404627338,1770351044894,-168.0,0.000169,2]
[404627339,1770351044903,-168.0,0.000169,2]
[404627340,1770351044914,-168.0,0.000169,2]
[404627341,1770351044923,-455.99591341,0.00016901,2]
[404627342,1770351044933,-160.0,0.00016968,2]
[404627343,1770351044943,-219.95,0.00016984,2]
[404627344,1770351044952,-1000.0,0.00016986,2]
[404627345,1770351044962,-156.29914378,0.00016999,2]
[404627346,1770351044973,-300.0,0.00016999,2]
[404627347,1770351044982,-300.0,0.00016999,2]
[404627348,1770351044991,-1000.0,0.00017,2]
[404627349,1770351045001,-30749.12460846,0.00017,2]
[404627350,1770351045010,-300.0,0.00017,2]
[404627351,1770351045020,-500.0,0.00017,2]
[404627352,1770351045030,-1000.0,0.00017021,2]
[404627353,1770351045039,-1000.0,0.00017021,2]
[404627354,1770351045051,-1000.0,0.00017021,2]
[404627355,1770351045060,-300.0,0.00017105,2]
[404627356,1770351045071,-300.0,0.00017105,2]
[404627357,1770351045080,-26592.4671246,0.00017106,2]
[404627358,1770351045089,-510.0,0.000172,2]
[404627359,1770351045099,-219.9496771,0.00017242,2]
[404627360,1770351045108,-1000.0,0.0001726,2]
[404627361,1770351045118,-500.0,0.00017263,3]
[404627362,1770351045127,-455.99591341,0.00017313,2]
[404627363,1770351045136,-1613.0,0.00017447,2]
[404627364,1770351045146,-1000.0,0.000175,2]
[404627365,1770351045155,-300.01972448,0.000175,2]
[404627366,1770351045164,-166.32410917,0.00017504,2]
[404627367,1770351045173,-6453.0,0.00017525,2]
[404627368,1770351045183,-37405.70232097,0.00017528,2]
[404627369,1770351045193,-1999.0,0.00017534,2]
[404627370,1770351045203,-1500.0,0.00017568,2]
[404627371,1770351045213,-737.86253141,0.00017568,2]
[404627372,1770351045223,-1576.29863876,0.00017568,2]
[404627373,1770351045233,-683.48068205,0.00017583,2]
[404627374,1770351045243,-2000.0,0.000176,2]
[404627375,1770351045253,-455.99591341,0.00017726,2]
[404627376,1770351045262,-300.0,0.0001777,2]
[404627377,1770351045272,-300.0,0.0001777,2]
[404627378,1770351045282,-151.0,0.00017771,2]
[404627379,1770351045292,-155.096329,0.00017771,2]
[404627380,1770351045302,-151.0,0.00017771,2]
[404627381,1770351045311,-271.949478,0.00017771,2]
[404627382,1770351045321,-271.949478,0.00017771,2]
[404627383,1770351045330,-271.949478,0.00017771,2]
[404627384,1770351045340,-271.949478,0.00017771,2]
[404627385,1770351045350,-159.47617403,0.00017808,2]
[404627386,1770351045359,-1000.0,0.00017808,2]
[404627387,1770351045369,-152.0,0.00017821,6]
[404627388,1770351045378,-500.0,0.0001789,2]
[404627389,1770351045388,-168.0,0.000179,2]
[404627390,1770351045398,-168.0,0.000179,2]
[404627391,1770351045407,-168.93,0.000179,3]
[404627392,1770351045417,-500.0,0.000179,2]
[404627393,1770351045426,-12528.0,0.00017945,2]
[404627394,1770351045435,-300.0,0.00017972,2]
[404627395,1770351045447,-300.0,0.00017972,2]
[404627396,1770351045457,-500.0,0.00017973,2]
[404627397,1770351045466,-500.61959343,0.00017973,2]
[404627398,1770351045475,-500.0,0.00017973,2]
[404627399,1770351045485,-500.0,0.00017973,2]
[404627400,1770351045495,-500.0,0.00017973,2]
[404627401,1770351045504,-500.0,0.00017973,2]
[404627402,1770351045518,-163.247011,0.00017973,2]
[404627404,1770351045527,-500.0,0.00017973,2]
[404627405,1770351045537,-500.97835368,0.00017973,2]
[404627406,1770351045547,-163.46644007,0.00017973,2]
[404627407,1770351045556,-599.50418217,0.00017973,2]
[404627408,1770351045566,-500.70107378,0.00017973,2]
[404627409,1770351045575,-500.0,0.00017973,2]
[404627410,1770351045586,-500.0,0.00017973,2]
[404627411,1770351045595,-500.0,0.00017973,2]
[404627412,1770351045605,-173.45914643,0.00017973,2]
[404627413,1770351045614,-464.97226578,0.00017973,2]
[404627414,1770351045623,-500.0,0.00017973,2]
[404627415,1770351045632,-500.0,0.00017973,2]
[404627416,1770351045642,-500.0,0.00017973,2]
[404627417,1770351045652,-500.45821925,0.00017973,2]
[404627418,1770351045661,-574.47198373,0.00017973,2]
[404627419,1770351045677,-500.0,0.00017973,2]
[404627420,1770351045697,-500.0,0.00017973,2]
[404627421,1770351045707,-500.68187101,0.00017973,2]
[404627422,1770351045716,-500.0,0.00017973,2]
[404627423,1770351045726,-500.0,0.00017973,2]
[404627424,1770351045736,-500.74873629,0.00017973,2]
[404627425,1770351045745,-501.20867572,0.00017973,2]
[404627426,1770351045754,-500.0,0.00017973,2]
[404627427,1770351045764,-500.0,0.00017973,2]
[404627428,1770351045773,-500.0,0.00017973,2]
[404627429,1770351045782,-500.69997424,0.00017973,2]
[404627430,1770351045791,-500.61383102,0.00017973,2]
[404627431,1770351045800,-500.86697962,0.00017973,2]
[404627432,1770351045809,-500.0,0.00017973,2]
[404627433,1770351045819,-500.66242788,0.00017973,2]
[404627434,1770351045828,-500.77613357,0.00017973,2]
[404627435,1770351045837,-500.0,0.00017973,2]
[404627436,1770351045847,-500.0,0.00017973,2]
[404627437,1770351045856,-500.68977772,0.00017973,2]
[404627438,1770351045866,-501.19044206,0.00017973,2]
[404627439,1770351045875,-500.0,0.00017973,2]
[404627440,1770351045884,-349.95877482,0.00017973,2]
[404627441,1770351045894,-500.0,0.00017973,2]
[404627442,1770351045904,-578.03210043,0.00017973,2]
[404627443,1770351045913,-500.0,0.00017973,2]
[404627444,1770351045922,-500.0,0.00017973,2]
[404627445,1770351045931,-500.70531917,0.00017973,2]
[404627446,1770351045941,-500.0,0.00017973,2]
[404627447,1770351045952,-500.0,0.00017973,2]
[404627448,1770351045962,-371.63179495,0.00017973,2]
[404627449,1770351045971,-500.0,0.00017973,2]
[404627450,1770351045980,-500.80352602,0.00017973,2]
[404627451,1770351045990,-500.95141077,0.00017973,2]
[404627452,1770351045999,-500.92254325,0.00017973,2]
[404627453,1770351046008,-500.0,0.00017973,2]
[404627454,1770351046017,-500.58529447,0.00017973,2]
[404627455,1770351046027,-500.55156561,0.00017973,2]
[404627456,1770351046036,-500.77250171,0.00017973,2]
[404627457,1770351046045,-500.9113518,0.00017973,2]
[404627458,1770351046055,-500.63282665,0.00017973,2]
[404627459,1770351046064,-500.62076882,0.00017973,2]
[404627460,1770351046074,-300.0,0.00017989,2]
[404627461,1770351046083,-300.0,0.00017989,2]
[404627462,1770351046092,-300.0,0.00017989,2]
[404627463,1770351046102,-56254.38333373,0.0001799,3]
[404627464,1770351046111,-500.0,0.0001799,2]
[404627465,1770351046120,-1000.0,0.00018,2]
[404627466,1770351046129,-160.0,0.00018,3]
[404627467,1770351046139,-406.36348009,0.00018,2]
[404627468,1770351046148,-487.0,0.00018,2]
[404627469,1770351046157,-487.0,0.00018,2]
[404627470,1770351046167,-200.95307,0.00018,2]
[404627471,1770351046176,-1000.0,0.00018082,2]
[404627472,1770351046185,-2000.0,0.00018116,2]
[404627473,1770351046196,-455.99591341,0.00018138,2]
[404627474,1770351046206,-1000.0,0.00018356,2]
[404627475,1770351046216,-1000.0,0.000185,2]
[404627476,1770351046226,-160.0,0.000185,3]
[404627477,1770351046235,-300.0,0.0001852,2]
[404627478,1770351046245,-300.0,0.0001852,2]
[404627479,1770351046255,-294.6687281,0.00018521,2]
[404627480,1770351046264,-1000.0,0.00018521,2]
[404627481,1770351046274,-1001.60276131,0.00018521,2]
[404627482,1770351046283,-502.45238655,0.00018521,2]
[404627483,1770351046293,-1003.56961729,0.00018521,2]
[404627484,1770351046302,-1000.0,0.00018521,2]
[404627485,1770351046312,-1000.0,0.00018521,2]
[404627486,1770351046321,-1000.0,0.00018521,2]
[404627487,1770351046331,-838.38172199,0.00018521,2]
[404627488,1770351046342,-1000.0,0.00018521,2]
[404627489,1770351046352,-202.48515844,0.00018521,2]
[404627490,1770351046361,-1001.83909702,0.00018521,2]
[404627491,1770351046370,-1000.0,0.00018521,2]
[404627492,1770351046380,-1000.0,0.00018521,2]
[404627493,1770351046389,-1000.0,0.00018521,2]
[404627494,1770351046399,-1000.0,0.00018521,2]
[404627495,1770351046408,-195.57188427,0.00018521,2]
[404627496,1770351046418,-1000.0,0.00018521,2]
[404627497,1770351046427,-988.53125732,0.00018521,2]
[404627498,1770351046436,-1000.0,0.00018521,2]
[404627499,1770351046446,-1001.57571445,0.00018521,2]
[404627500,1770351046455,-1000.0,0.00018521,2]
[404627501,1770351046465,-502.31420001,0.00018521,2]
[404627502,1770351046474,-1000.0,0.00018521,2]
[404627503,1770351046484,-1000.0,0.00018521,2]
[404627504,1770351046493,-1000.0,0.00018521,2]
[404627505,1770351046505,-504.11383159,0.00018521,2]
[404627506,1770351046515,-1000.0,0.00018521,2]
[404627507,1770351046524,-1000.0,0.00018521,2]
[404627508,1770351046533,-1089.77593352,0.00018521,2]
[404627509,1770351046542,-455.99591341,0.0001855,2]
[404627510,1770351046552,-2000.0,0.000186,2]
[404627511,1770351046562,-1000.0,0.0001863,2]
[404627512,1770351046571,-2500.0,0.00018664,2]
[404627513,1770351046584,-8883.33032249,0.00018888,2]
[404627514,1770351046594,-168.0,0.000189,3]
[404627515,1770351046603,-168.0,0.000189,3]
[404627516,1770351046612,-1000.0,0.00018904,2]
[404627517,1770351046621,-455.99591341,0.00018962,2]
[404627518,1770351046631,-1000.0,0.00019,2]
[404627519,1770351046640,-508.42,0.00019,7]
[404627520,1770351046650,-1144.15329759,0.00019,2]
[404627521,1770351046659,-350.0,0.00019,2]
[404627522,1770351046669,-718.966401,0.00019,2]
[404627523,1770351046679,-780.11373,0.00019,2]
[404627524,1770351046688,-300.0,0.00019067,2]
[404627525,1770351046698,-500.0,0.00019068,2]
[404627526,1770351046707,-496.89345605,0.00019068,2]
[404627527,1770351046717,-681.06386982,0.00019068,2]
[404627528,1770351046773,-500.53597141,0.00019068,2]
[404627529,1770351046783,-1004.44641503,0.00019068,2]
[404627530,1770351046792,-1500.0,0.00019068,2]
[404627531,1770351046801,-500.66081299,0.00019068,2]
[404627532,1770351046811,-1500.0,0.00019068,2]
[404627533,1770351046821,-739.79106788,0.00019068,2]
[404627534,1770351046830,-639.66838893,0.00019068,2]
[404627535,1770351046839,-500.7469241,0.00019068,2]
[404627536,1770351046848,-1000.82698383,0.00019068,2]
[404627537,1770351046858,-1500.0,0.00019068,2]
[404627538,1770351046867,-502.36742904,0.00019068,2]
[404627539,1770351046876,-1500.0,0.00019068,2]
[404627540,1770351046886,-416.41696061,0.00019068,2]
[404627541,1770351046895,-1254.36478791,0.00019068,2]
[404627542,1770351046904,-1000.0,0.00019069,2]
[404627543,1770351046913,-200.14989585,0.00019082,2]
[404627544,1770351046923,-2258.0,0.00019174,2]
[404627545,1770351046932,-3011.3364706,0.00019178,2]
[404627546,1770351046943,-151.0,0.00019178,2]
[404627547,1770351046952,-151.0,0.00019178,2]
[404627548,1770351046961,-151.0,0.00019178,2]
[404627549,1770351046971,-151.0,0.00019178,2]
[404627550,1770351046980,-184.831322,0.00019178,2]
[404627551,1770351046990,-184.831322,0.00019178,2]
[404627552,1770351046999,-184.831322,0.00019178,2]
[404627553,1770351047008,-184.831322,0.00019178,2]
[404627554,1770351047017,-1000.0,0.00019178,2]
[404627555,1770351047026,-264.23912418,0.00019178,2]
[404627556,1770351047036,-343.07663488,0.00019184,2]
[404627557,1770351047045,-683.48068205,0.00019192,2]
[404627558,1770351047055,-200.0,0.00019199,2]
[404627559,1770351047064,-3000.0,0.00019212,2]
[404627560,1770351047074,-200.0,0.00019224,2]
[404627561,1770351047083,-2157.0,0.00019277,2]
[404627562,1770351047092,-3482.0,0.0001936,2]
[404627563,1770351047101,-1272.0,0.0001936,2]
[404627564,1770351047111,-1206.0,0.0001936,2]
[404627565,1770351047120,-917.0,0.0001936,2]
[404627566,1770351047129,-3254.0,0.0001936,2]
[404627567,1770351047138,-412.0,0.0001936,2]
[404627568,1770351047148,-2446.0,0.0001936,2]
[404627569,1770351047157,-600.0,0.000194,2]
[404627570,1770351047166,-987.0,0.000194,2]
[404627571,1770351047175,-267.0,0.000194,2]
[404627572,1770351047184,-200.0,0.00019422,2]
[404627573,1770351047194,-1556.51291499,0.0001947,2]
[404627574,1770351047203,-2772.749673,0.00019488,2]
[404627575,1770351047213,-1000.0,0.000195,2]
[404627576,1770351047222,-152.0,0.00019574,7]
[404627577,1770351047232,-2000.0,0.000196,2]
[404627578,1770351047241,-1037.36040351,0.000196,2]
[404627579,1770351047250,-1069.3770979,0.000196,2]
[404627580,1770351047259,-1021.10999381,0.000196,2]
[404627581,1770351047268,-2000.0,0.00019616,2]
[404627582,1770351047278,-2000.0,0.00019616,2]
[404627583,1770351047287,-2000.0,0.00019616,2]
[404627584,1770351047297,-2000.0,0.00019616,2]
[404627585,1770351047306,-1064.39176854,0.00019698,2]
[404627586,1770351047315,-616.0,0.00019711,2]
[404627587,1770351047324,-963.18,0.00019711,2]
[404627588,1770351047333,-510.0,0.00019712,4]
[404627589,1770351047343,-500.0,0.00019726,2]
[404627590,1770351047353,-3500.0,0.0001976,2]
[404627591,1770351047362,-500.0,0.00019781,2]
[404627592,1770351047371,-26592.4671246,0.00019791,2]
[404627593,1770351047381,-168.0,0.000198,4]
[404627594,1770351047390,-626.47040213,0.00019836,2]
[404627595,1770351047400,-443.878788,0.00019889,7]
[404627596,1770351047409,-1064.39176854,0.00019897,2]
[404627597,1770351047419,-200.0,0.00019921,2]
[404627598,1770351047428,-200.0,0.00019955,2]
[404627599,1770351047437,-1000.0,0.0001997,2]
[404627600,1770351047451,-1000.0,0.0001997,2]
[404627601,1770351047460,-1000.0,0.0001997,2]
[404627602,1770351047470,-1000.0,0.0001997,2]
[404627603,1770351047479,-1000.0,0.0001997,2]
[404627604,1770351047489,-200.0,0.00019986,2]
[404627605,1770351047498,-851.51341483,0.00019996,2]
[404627606,1770351047510,-180.63108973,0.00019999,2]
[404627607,1770351047519,-241.48126576,0.00019999,2]
[404627608,1770351047528,-500.0,0.00019999,2]
[404627609,1770351047538,-500.0,0.00019999,2]
[404627610,1770351047547,-375.93512418,0.00019999,2]
[404627611,1770351047556,-1000.0,0.0002,2]
[404627612,1770351047566,-1504.0,0.0002,2]
[404627613,1770351047576,-1504.0,0.0002,2]
[404627614,1770351047587,-1504.0,0.0002,2]
[404627615,1770351047596,-151.0,0.0002,2]
[404627616,1770351047605,-152.24894628,0.0002,2]
[404627617,1770351047614,-500.0,0.0002,2]
[404627618,1770351047623,-200.0,0.0002,2]
[404627619,1770351047633,-200.0,0.00020017,2]
[404627620,1770351047643,-150.0,0.000201,7]
[404627621,1770351047652,-2500.0,0.00020164,2]
[404627622,1770351047661,-946.58829489,0.00020164,2]
[404627623,1770351047670,-2500.0,0.00020164,2]
[404627624,1770351047679,-2500.0,0.00020164,2]
[404627625,1770351047689,-200.0,0.000202,2]
[404627626,1770351047698,-4000.0,0.00020308,2]
[404627627,1770351047708,-161.0,0.00020349,120]
[404627628,1770351047717,-600.0,0.0002037,3]
[404627629,1770351047726,-765.56298528,0.0002037,3]
[404627630,1770351047735,-165.0,0.000204,120]
[404627631,1770351047744,-200.0,0.00020433,2]
[404627632,1770351047753,-1000.0,0.000205,2]
[404627633,1770351047763,-154.75,0.00020548,2]
[404627634,1770351047772,-2000.0,0.000206,2]
[404627635,1770351047781,-851.51341483,0.00020636,2]
[404627636,1770351047790,-500.85860802,0.00020712,2]
[404627637,1770351047800,-501.78199785,0.00020712,2]
[404627638,1770351047810,-777.00425691,0.00020712,2]
[404627639,1770351047819,-200.0,0.00020723,2]
[404627640,1770351047829,-37405.70232097,0.00020724,2]
[404627641,1770351047838,-200.0,0.00020769,2]
[404627642,1770351047848,-683.48068205,0.00020801,2]
[404627643,1770351047858,-632.21350604,0.00020856,2]
[404627644,1770351047868,-1121.70770324,0.0002095,2]
[404627645,1770351047877,-500.0,0.00020973,2]